[Event "Vojvodina Open 2024-A 2024"]
[Site "Novi Sad"]
[Date "2024.06.28"]
[Round "6.7"]
[White "Harsh Suresh"]
[Black "Masic, Predrag"]
[Result "0-1"]
[ECO "A04"]
[WhiteElo "2426"]
[BlackElo "2176"]
[Annotator "RC"]
[PlyCount "147"]
[EventDate "2024.06.03"]
[EventType "swiss"]
[EventCountry "SRB"]
[SourceTitle "playchess.com"]
[Source "ChessBase"]
[SourceQuality "1"]
[TimeControl "40/5400+30:900+30"]

1. e4 {[%emt 0:01:02]} e6 {[%emt 0:00:37]} 2. d3 {[%emt 0:02:24]} c5 {[%emt 0:00:51]} 3. Nf3 {[%emt 0:00:29]} Nc6 {[%emt 0:00:15]} 4. g3 {[%emt 0:00:13]} g6 {[%emt 0:00:46]} 5. Bg2 {[%emt 0:03:48]} Bg7 {[%emt 0:00:20]} 6. O-O {[%emt 0:00:11]} Nge7 {[%emt 0:01:04]} 7. Re1 {[%emt 0:00:12]} d6 {[%emt 0:00:21]} 8. c3 {[%emt 0:10:29]} e5 {[%emt 0:02:06]} 9. Be3 {[%emt 0:10:54]} O-O {[%emt 0:02:00]} 10. d4 {[%emt 0:08:20]} exd4 {[%emt 0:06:47]} 11. cxd4 {[%emt 0:00:27]} Bg4 {[%emt 0:00:30]} 12. dxc5 {[%emt 0:09:14]} dxc5 {[%emt 0:00:38]} 13. Nbd2 {[%emt 0:03:52]} b6 {[%emt 0:00:53]} 14. Qb1 {[%emt 0:01:57]} Qd7 {[%emt 0:02:15]} 15. Nc4 {[%emt 0:04:52]} Rad8 {[%emt 0:01:30]} 16. Bf4 {[%emt 0:00:59]} Bxf3 {[%emt 0:09:32]} 17. Bxf3 {[%emt 0:00:08]} Qe6 {[%emt 0:01:03]} 18. Ne3 {[%emt 0:05:49]} Ne5 {[%emt 0:14:03]} 19. Bxe5 {[%emt 0:05:07]} Qxe5 {[%emt 0:00:49]} 20. Nd5 {[%emt 0:11:05]} Nxd5 {[%emt 0:02:27]} 21. exd5 {[%emt 0:00:09]} Qxb2 {[%emt 0:00:19]} 22. Qxb2 {[%emt 0:00:25]} Bxb2 {[%emt 0:00:08]} 23. Rab1 {[%emt 0:00:29]} Bf6 {[%emt 0:00:22]} 24. Rec1 {[%emt 0:03:14]} Rfe8 {[%emt 0:04:28]} 25. Rc2 {[%emt 0:01:52]} Bd4 {[%emt 0:01:13]} 26. a4 {[%emt 0:01:13]} Rd6 {[%emt 0:00:43]} 27. Kg2 {[%emt 0:01:39]} h5 {[%emt 0:00:41]} 28. Rf1 {[%emt 0:01:13]} Kg7 {[%emt 0:02:43]} 29. h3 {[%emt 0:00:15]} Re5 {[%emt 0:00:39]} 30. Rd2 {[%emt 0:01:27]} Kf8 {[%emt 0:03:25]} 31. Rc2 {[%emt 0:00:58]} Ke7 {[%emt 0:00:42]} 32. Rb1 {[%emt 0:00:46]} Rf6 {[%emt 0:01:02]} 33. g4 {[%emt 0:00:30]} h4 {[%emt 0:00:21]} 34. a5 {[%emt 0:00:48]} Kf8 {[%emt 0:01:21]} 35. Ra2 {[%emt 0:00:32]} Bc3 {[%emt 0:01:57]} 36. axb6 {[%emt 0:00:22]} axb6 {[%emt 0:00:16]} 37. Ra8+ {[%emt 0:02:09]} Re8 {[%emt 0:01:32]} 38. Rxe8+ {[%emt 0:02:57]} Kxe8 {[%emt 0:00:02]} 39. Be2 {[%emt 0:00:07]} Bb4 {[%emt 0:03:48]} 40. Ra1 {[%emt 0:00:00]} Ke7 {[%emt 0:00:00]} 41. Ra8 {[%emt 0:06:11]} Rf4 {[%emt 0:09:03]} 42. Rc8 {[%emt 0:00:48]} Rd4 {[%emt 0:02:33]} 43. Rc7+ {[%emt 0:01:17]} Kf8 {[%emt 0:01:54]} 44. Rc6 {[%emt 0:02:44]} Ba5 {[%emt 0:05:39]} 45. d6 {[%emt 0:00:10]} Kg7 {[%emt 0:00:36]} 46. g5 {[%emt 0:00:48]} Bd2 {[%emt 0:02:28]} 47. Rxb6 {[%emt 0:01:52]} Bf4 {[%emt 0:01:01]} 48. Rc6 {[%emt 0:02:43]} Bxd6 {[%emt 0:00:10]} 49. Kf1 {[%emt 0:00:12]} Kf8 {[%emt 0:01:14]} 50. Rc8+ {[%emt 0:00:14]} Kg7 {[%emt 0:00:22]} 51. Rc6 {[%emt 0:00:34]} Be7 {[%emt 0:00:44]} 52. Rc7 {[%emt 0:00:56]} Kf8 {[%emt 0:01:15]} 53. Rc8+ {[%emt 0:01:46]} Rd8 {[%emt 0:00:08]} 54. Rxd8+ {[%emt 0:03:03]} Bxd8 {[%emt 0:00:02]} 55. Bc4 {[%emt 0:03:16]} Bxg5 {[%emt 0:00:20]} 56. Ke2 {[%emt 0:00:05]} Bf6 {[%emt 0:01:19]} 57. Bb3 {[%emt 0:00:50]} Bd4 {[%emt 0:00:13]} 58. Bc4 {[%emt 0:00:13]} Ke7 {[%emt 0:00:26]} 59. Bb3 {[%emt 0:00:08]} f5 {[%emt 0:01:53]} 60. Bc4 {[%emt 0:00:24]} Kf6 {[%emt 0:00:24]} 61. Ba2 {[%emt 0:01:12]} Ke5 {[%emt 0:00:25]} 62. Bf7 {[%emt 0:00:08]} Kf6 {[%emt 0:03:26]} 63. Ba2 {[%emt 0:00:09]} Bxf2 {[%emt 0:03:22]} 64. Kxf2 {[%emt 0:00:07]} Ke5 {[%emt 0:00:03]} 65. Ke3 {[%emt 0:02:10]} g5 {[%emt 0:00:36]} 66. Bb3 {[%emt 0:00:43]} g4 {[%emt 0:00:32]} 67. hxg4 {[%emt 0:00:36]} fxg4 {[%emt 0:00:02]} 68. Ba4 {[%emt 0:00:11]} c4 {[%emt 0:01:29]} 69. Bd7 {[%emt 0:00:17]} g3 {[%emt 0:00:16]} 70. Bh3 {[%emt 0:00:17]} c3 {[%emt 0:00:33]} 71. Kd3 {[%emt 0:01:13]} Kf4 {[%emt 0:00:16]} 72. Bg2 {[%emt 0:00:13]} Kg4 {[%emt 0:00:09]} 73. Kxc3 {[%emt 0:00:15]} h3 {[%emt 0:00:11]} 74. Bxh3+ {[%emt 0:00:38]} 0-1

[Event "Vojvodina Open 2024-A 2024"]
[Site "Novi Sad"]
[Date "2024.06.28"]
[Round "6.8"]
[White "Ivanov, Mikhail M"]
[Black "Pasa, Ahmet"]
[Result "1-0"]
[ECO "E06"]
[WhiteElo "2248"]
[BlackElo "2056"]
[Annotator "RC"]
[PlyCount "139"]
[EventDate "2024.06.03"]
[EventType "swiss"]
[EventCountry "SRB"]
[SourceTitle "playchess.com"]
[Source "ChessBase"]
[SourceQuality "1"]
[TimeControl "40/5400+30:900+30"]

1. d4 {[%emt 0:04:56]} d5 {[%emt 0:00:08]} 2. c4 {[%emt 0:00:17]} e6 {[%emt 0:00:14]} 3. g3 {[%emt 0:00:11]} Nf6 {[%emt 0:00:20]} 4. Bg2 {[%emt 0:00:09]} Be7 {[%emt 0:00:13]} 5. Nf3 {[%emt 0:00:05]} O-O {[%emt 0:00:14]} 6. Nc3 {[%emt 0:01:31]} dxc4 {[%emt 0:01:44]} 7. Ne5 {[%emt 0:01:09]} Nc6 {[%emt 0:11:58]} 8. Bxc6 {[%emt 0:00:30]} bxc6 {[%emt 0:00:02]} 9. Nxc6 {[%emt 0:00:07]} Qe8 {[%emt 0:00:08]} 10. Nxe7+ {[%emt 0:00:18]} Qxe7 {[%emt 0:00:02]} 11. Qa4 {[%emt 0:00:08]} e5 {[%emt 0:00:48]} 12. d5 {[%emt 0:05:39]} Rb8 {[%emt 0:30:10]} 13. O-O {[%emt 0:06:16]} Rb4 {[%emt 0:28:49]} 14. Qxa7 {[%emt 0:00:57]} Bb7 {[%emt 0:00:46]} 15. Rd1 {[%emt 0:10:16]} Ra8 {[%emt 0:01:59]} 16. Qe3 {[%emt 0:00:56]} Rd8 {[%emt 0:01:30]} 17. Qg5 {[%emt 0:05:52]} h6 {[%emt 0:02:35]} 18. Qh4 {[%emt 0:00:14]} Bxd5 {[%emt 0:00:49]} 19. Nxd5 {[%emt 0:04:44]} Rxd5 {[%emt 0:00:09]} 20. Rxd5 {[%emt 0:00:11]} Nxd5 {[%emt 0:00:01]} 21. Qxe7 {[%emt 0:00:13]} Nxe7 {[%emt 0:00:02]} 22. a4 {[%emt 0:00:08]} Rb6 {[%emt 0:02:58]} 23. a5 {[%emt 0:00:41]} Ra6 {[%emt 0:00:05]} 24. Bd2 {[%emt 0:00:06]} Nc6 {[%emt 0:01:25]} 25. Ra4 {[%emt 0:02:19]} Ra7 {[%emt 0:00:32]} 26. Bc3 {[%emt 0:03:50]} f6 {[%emt 0:00:19]} 27. Kg2 {[%emt 0:00:24]} Kf7 {[%emt 0:02:26]} 28. e4 {[%emt 0:06:17]} g5 {[%emt 0:04:32]} 29. Rxc4 {[%emt 0:03:31]} Nxa5 {[%emt 0:00:12]} 30. Bxa5 {[%emt 0:00:05]} Rxa5 {[%emt 0:00:03]} 31. Rxc7+ {[%emt 0:00:06]} Kg6 {[%emt 0:00:24]} 32. Rb7 {[%emt 0:00:51]} g4 {[%emt 0:03:37]} 33. h3 {[%emt 0:01:47]} h5 {[%emt 0:00:26]} 34. f3 {[%emt 0:15:22]} gxf3+ {[%emt 0:00:40]} 35. Kxf3 {[%emt 0:00:09]} Ra1 {[%emt 0:00:42]} 36. h4 {[%emt 0:04:17]} Rf1+ {[%emt 0:01:59]} 37. Ke2 {[%emt 0:00:13]} Rg1 {[%emt 0:00:06]} 38. Kf2 {[%emt 0:01:03]} Rb1 {[%emt 0:00:28]} 39. Rb3 {[%emt 0:00:50]} Rd1 {[%emt 0:01:39]} 40. Ke2 {[%emt 0:00:00]} Rd4 {[%emt 0:00:00]} 41. Ke3 {[%emt 0:01:56]} Kg7 {[%emt 0:01:11]} 42. Rb7+ {[%emt 0:09:50]} Kg6 {[%emt 0:00:15]} 43. b4 {[%emt 0:00:02]} Kh6 {[%emt 0:00:42]} 44. b5 {[%emt 0:05:46]} Rb4 {[%emt 0:00:31]} 45. b6 {[%emt 0:00:29]} Rb3+ {[%emt 0:02:23]} 46. Kd2 {[%emt 0:00:06]} Kg6 {[%emt 0:01:10]} 47. Rb8 {[%emt 0:00:28]} Kg7 {[%emt 0:03:21]} 48. Kc2 {[%emt 0:02:08]} Rb4 {[%emt 0:00:05]} 49. Kc3 {[%emt 0:00:35]} Rb1 {[%emt 0:01:06]} 50. Kc4 {[%emt 0:00:11]} Rb2 {[%emt 0:05:17]} 51. Kc5 {[%emt 0:01:06]} Rc2+ {[%emt 0:01:11]} 52. Kd6 {[%emt 0:00:25]} Rd2+ {[%emt 0:00:50]} 53. Kc6 {[%emt 0:05:53]} Rc2+ {[%emt 0:00:07]} 54. Kb7 {[%emt 0:00:17]} Rc4 {[%emt 0:00:27]} 55. Rc8 {[%emt 0:00:10]} Rxe4 {[%emt 0:00:12]} 56. Rc3 {[%emt 0:00:07]} Rb4 {[%emt 0:00:26]} 57. Kc7 {[%emt 0:00:07]} Kg6 {[%emt 0:03:13]} 58. b7 {[%emt 0:00:22]} Kf5 {[%emt 0:00:26]} 59. b8=Q {[%emt 0:03:17]} Rxb8 {[%emt 0:00:02]} 60. Kxb8 {[%emt 0:00:16]} Kg4 {[%emt 0:00:39]} 61. Kc7 {[%emt 0:00:16]} f5 {[%emt 0:00:12]} 62. Kd6 {[%emt 0:00:13]} f4 {[%emt 0:00:29]} 63. gxf4 {[%emt 0:00:53]} exf4 {[%emt 0:00:01]} 64. Ke5 {[%emt 0:00:19]} Kxh4 {[%emt 0:01:21]} 65. Ke4 {[%emt 0:02:17]} Kg4 {[%emt 0:00:16]} 66. Rc8 {[%emt 0:00:13]} h4 {[%emt 0:05:39]} 67. Rg8+ {[%emt 0:00:09]} Kh3 {[%emt 0:00:09]} 68. Kxf4 {[%emt 0:00:19]} Kh2 {[%emt 0:00:02]} 69. Kg4 {[%emt 0:00:12]} h3 {[%emt 0:00:08]} 70. Rh8 {[%emt 0:00:05]} 1-0

[Event "Vojvodina Open 2024-A 2024"]
[Site "Novi Sad"]
[Date "2024.06.28"]
[Round "6.9"]
[White "Leskur, Dejan"]
[Black "Yalcinkaya, Efe"]
[Result "1-0"]
[ECO "B42"]
[WhiteElo "2227"]
[BlackElo "2070"]
[Annotator "RC"]
[PlyCount "107"]
[EventDate "2024.06.03"]
[EventType "swiss"]
[EventCountry "SRB"]
[SourceTitle "playchess.com"]
[Source "ChessBase"]
[SourceQuality "1"]
[TimeControl "40/5400+30:900+30"]

1. e4 {[%emt 0:00:04]} c5 {[%emt 0:00:02]} 2. Nf3 {[%emt 0:00:08]} e6 {[%emt 0:00:02]} 3. d4 {[%emt 0:00:40]} cxd4 {[%emt 0:00:04]} 4. Nxd4 {[%emt 0:00:08]} a6 {[%emt 0:00:04]} 5. Bd3 {[%emt 0:00:50]} Bc5 {[%emt 0:00:05]} 6. Nb3 {[%emt 1:31:40]} Ba7 {[%emt 0:00:07]} 7. Nc3 {[%emt 0:00:00]} Nc6 {[%emt 0:00:30]} 8. Qe2 {[%emt 0:00:00]} d6 {[%emt 0:00:16]} 9. Be3 {[%emt 0:00:00]} b5 {[%emt 0:00:15]} 10. O-O {[%emt 0:00:00]} Nf6 {[%emt 0:02:14]} 11. a4 {[%emt 0:00:00]} b4 {[%emt 0:01:28]} 12. Nb1 {[%emt 0:00:00]} O-O {[%emt 0:02:43]} 13. N1d2 {[%emt 0:00:00]} Qc7 {[%emt 0:07:07]} 14. Bxa7 {[%emt 0:00:00]} Rxa7 {[%emt 0:03:40]} 15. f4 {[%emt 0:00:00]} Bb7 {[%emt 0:05:21]} 16. Kh1 {[%emt 0:00:00]} Re8 {[%emt 1:14:32]} 17. Rae1 {[%emt 0:00:00]} e5 {[%emt 0:00:00]} 18. fxe5 {[%emt 0:00:00]} Nxe5 {[%emt 0:00:00]} 19. Nd4 {[%emt 0:00:00]} Raa8 {[%emt 0:00:00]} 20. Qe3 {[%emt 0:00:00]} d5 {[%emt 0:00:00]} 21. Rxf6 {[%emt 0:00:00]} gxf6 {[%emt 0:00:00]} 22. Qf4 {[%emt 0:00:00]} Qb6 {[%emt 0:00:00]} 23. Nf5 {[%emt 0:00:00]} Kh8 {[%emt 0:00:00]} 24. Re3 {[%emt 0:00:16]} Rg8 {[%emt 0:00:00]} 25. Nh6 {[%emt 0:01:26]} Rg6 {[%emt 0:00:00]} 26. exd5 {[%emt 0:00:20]} Nxd3 {[%emt 0:00:00]} 27. Rxd3 {[%emt 0:04:44]} Re8 {[%emt 0:00:00]} 28. Nf1 {[%emt 0:00:32]} Bxd5 {[%emt 0:01:55]} 29. Rxd5 {[%emt 0:00:29]} Qb7 {[%emt 0:01:19]} 30. Rd2 {[%emt 0:00:28]} Qe7 {[%emt 0:00:37]} 31. Nf5 {[%emt 0:01:16]} Qe1 {[%emt 0:00:10]} 32. h4 {[%emt 0:01:10]} h5 {[%emt 0:01:02]} 33. Kh2 {[%emt 0:01:33]} Re4 {[%emt 0:02:02]} 34. Qf2 {[%emt 0:00:58]} Qxf2 {[%emt 0:00:30]} 35. Rxf2 {[%emt 0:00:01]} Rgg4 {[%emt 0:01:04]} 36. N1g3 {[%emt 0:00:34]} Re1 {[%emt 0:01:21]} 37. Nxh5 {[%emt 0:00:20]} Rc4 {[%emt 0:00:00]} 38. Nxf6 {[%emt 0:00:15]} Re6 {[%emt 0:00:00]} 39. Nd5 {[%emt 0:00:19]} Re1 {[%emt 0:00:00]} 40. b3 {[%emt 0:00:00]} Rce4 {[%emt 0:00:00]} 41. Nf4 {[%emt 0:02:46]} Rb1 {[%emt 0:00:37]} 42. Nd6 {[%emt 0:01:52]} Ree1 {[%emt 0:01:05]} 43. Nxf7+ {[%emt 0:00:50]} Kg8 {[%emt 0:00:05]} 44. Nd6 {[%emt 0:00:34]} Red1 {[%emt 0:00:16]} 45. Nc4 {[%emt 0:00:21]} Rbc1 {[%emt 0:00:26]} 46. Nd3 {[%emt 0:00:32]} Rb1 {[%emt 0:00:05]} 47. Nxb4 {[%emt 0:00:12]} Rh1+ {[%emt 0:02:00]} 48. Kg3 {[%emt 0:00:14]} Rbd1 {[%emt 0:00:07]} 49. Nxa6 {[%emt 0:00:35]} Rd4 {[%emt 0:00:05]} 50. Rf4 {[%emt 0:00:12]} Rd7 {[%emt 0:00:06]} 51. Nc5 {[%emt 0:00:35]} Re7 {[%emt 0:00:08]} 52. Re4 {[%emt 0:01:01]} Rg7+ {[%emt 0:00:03]} 53. Rg4 {[%emt 0:00:11]} Rc1 {[%emt 0:00:04]} 54. Ne3 {[%emt 0:00:16]} 1-0

[Event "Vojvodina Open 2024-A 2024"]
[Site "Novi Sad"]
[Date "2024.06.28"]
[Round "6.10"]
[White "Rupesh Reddy Y"]
[Black "Vihaan Dumir"]
[Result "1/2-1/2"]
[ECO "D37"]
[WhiteElo "1807"]
[BlackElo "2032"]
[Annotator "RC"]
[PlyCount "101"]
[EventDate "2024.06.03"]
[EventType "swiss"]
[EventCountry "SRB"]
[SourceTitle "playchess.com"]
[Source "ChessBase"]
[SourceQuality "1"]
[TimeControl "40/5400+30:900+30"]

1. d4 {[%emt 0:02:55]} e6 {[%emt 0:00:16]} 2. c4 {[%emt 0:00:03]} d5 {[%emt 0:00:09]} 3. Nc3 {[%emt 0:00:05]} h6 {[%emt 0:00:07]} 4. Nf3 {[%emt 0:00:29]} Nf6 {[%emt 0:00:13]} 5. h3 {[%emt 0:00:07]} Bd6 {[%emt 0:01:56]} 6. e3 {[%emt 0:00:15]} O-O {[%emt 0:02:05]} 7. Bd3 {[%emt 0:00:05]} b6 {[%emt 0:02:46]} 8. O-O {[%emt 0:00:24]} dxc4 {[%emt 0:02:12]} 9. Bxc4 {[%emt 0:00:06]} Bb7 {[%emt 0:00:17]} 10. Qe2 {[%emt 0:00:47]} Nbd7 {[%emt 0:19:17]} 11. e4 {[%emt 0:01:21]} e5 {[%emt 0:00:08]} 12. d5 {[%emt 0:00:25]} a6 {[%emt 0:10:46]} 13. a4 {[%emt 0:01:55]} Nh5 {[%emt 0:07:28]} 14. Be3 {[%emt 0:06:49]} Qf6 {[%emt 0:00:56]} 15. g3 {[%emt 0:01:10]} Bc8 {[%emt 0:09:17]} 16. Kh2 {[%emt 0:16:27]} g5 {[%emt 0:01:26]} 17. Nxg5 {[%emt 0:03:23]} Nf4 {[%emt 0:00:16]} 18. Bxf4 {[%emt 0:02:07]} exf4 {[%emt 0:01:57]} 19. Nf3 {[%emt 0:00:03]} Ne5 {[%emt 0:06:10]} 20. Nxe5 {[%emt 0:03:29]} Qxe5 {[%emt 0:00:36]} 21. Qf3 {[%emt 0:01:13]} f5 {[%emt 0:08:08]} 22. exf5 {[%emt 0:01:02]} fxg3+ {[%emt 0:02:26]} 23. Qxg3+ {[%emt 0:01:13]} Qg7 {[%emt 0:01:32]} 24. f4 {[%emt 0:00:05]} Rxf5 {[%emt 0:05:08]} 25. Ne4 {[%emt 0:03:02]} Bb7 {[%emt 0:05:39]} 26. Qd3 {[%emt 0:06:02]} Qf7 {[%emt 0:04:36]} 27. Rg1+ {[%emt 0:01:09]} Kf8 {[%emt 0:02:29]} 28. Nxd6 {[%emt 0:00:17]} cxd6 {[%emt 0:00:06]} 29. Qd4 {[%emt 0:02:25]} Rxf4 {[%emt 0:00:21]} 30. Qxb6 {[%emt 0:13:42]} Rf2+ {[%emt 0:00:05]} 31. Rg2 {[%emt 0:00:03]} Rxg2+ {[%emt 0:00:49]} 32. Kxg2 {[%emt 0:00:13]} Bxd5+ {[%emt 0:00:02]} 33. Bxd5 {[%emt 0:01:20]} Qxd5+ {[%emt 0:00:04]} 34. Kg1 {[%emt 0:00:59]} Qg5+ {[%emt 0:00:04]} 35. Kf1 {[%emt 0:01:09]} Kg8 {[%emt 0:02:55]} 36. Qg1 {[%emt 0:00:59]} Rf8+ {[%emt 0:00:16]} 37. Ke2 {[%emt 0:00:05]} Rb8 {[%emt 0:01:03]} 38. Qxg5+ {[%emt 0:04:18]} hxg5 {[%emt 0:00:06]} 39. Rg1 {[%emt 0:00:20]} Rxb2+ {[%emt 0:00:05]} 40. Kd3 {[%emt 0:00:00]} Rb3+ {[%emt 0:00:00]} 41. Kc2 {[%emt 0:01:00]} Rxh3 {[%emt 0:02:54]} 42. Rxg5+ {[%emt 0:00:05]} Kf7 {[%emt 0:00:09]} 43. Ra5 {[%emt 0:00:03]} Ke6 {[%emt 0:00:19]} 44. Rxa6 {[%emt 0:00:01]} Kd5 {[%emt 0:00:41]} 45. Ra8 {[%emt 0:00:43]} Kc4 {[%emt 0:00:54]} 46. Rc8+ {[%emt 0:00:12]} Kb4 {[%emt 0:00:19]} 47. Rd8 {[%emt 0:00:05]} Rh6 {[%emt 0:02:32]} 48. Kd3 {[%emt 0:00:12]} Rh1 {[%emt 0:00:49]} 49. Kd2 {[%emt 0:00:35]} Rh6 {[%emt 0:00:49]} 50. Kd3 {[%emt 0:00:05]} Rh1 {[%emt 0:00:53]} 51. Ke4 {[%emt 0:45:58]} 1/2-1/2

[Event "Vojvodina Open 2024-A 2024"]
[Site "Novi Sad"]
[Date "2024.06.28"]
[Round "6.11"]
[White "Ljepic, Andrej"]
[Black "Sakmak, Kutay"]
[Result "1/2-1/2"]
[ECO "A45"]
[WhiteElo "2267"]
[BlackElo "1993"]
[Annotator "RC"]
[PlyCount "138"]
[EventDate "2024.06.03"]
[EventType "swiss"]
[EventCountry "SRB"]
[SourceTitle "playchess.com"]
[Source "ChessBase"]
[SourceQuality "1"]
[TimeControl "40/5400+30:900+30"]

1. d4 {[%emt 0:04:00]} Nf6 {[%emt 0:00:07]} 2. Bg5 {[%emt 0:00:03]} Ne4 {[%emt 0:00:22]} 3. Bf4 {[%emt 0:00:05]} c5 {[%emt 0:00:15]} 4. f3 {[%emt 0:00:12]} Nf6 {[%emt 0:00:21]} 5. d5 {[%emt 0:00:12]} Qb6 {[%emt 0:00:28]} 6. Bc1 {[%emt 0:00:12]} e6 {[%emt 0:01:23]} 7. e4 {[%emt 0:00:33]} exd5 {[%emt 0:04:11]} 8. exd5 {[%emt 0:00:02]} Bd6 {[%emt 0:01:16]} 9. c4 {[%emt 0:04:10]} Qc7 {[%emt 0:02:04]} 10. g3 {[%emt 0:01:55]} O-O {[%emt 0:00:09]} 11. Bd3 {[%emt 0:01:51]} b5 {[%emt 0:01:23]} 12. Nc3 {[%emt 0:02:01]} bxc4 {[%emt 0:00:09]} 13. Bxc4 {[%emt 0:00:15]} Ba6 {[%emt 0:01:23]} 14. Bxa6 {[%emt 0:01:07]} Nxa6 {[%emt 0:00:07]} 15. Nge2 {[%emt 0:00:04]} h6 {[%emt 0:02:52]} 16. O-O {[%emt 0:01:03]} c4 {[%emt 0:01:37]} 17. Be3 {[%emt 0:00:40]} Bc5 {[%emt 0:01:15]} 18. Bxc5 {[%emt 0:00:48]} Qxc5+ {[%emt 0:00:08]} 19. Qd4 {[%emt 0:00:34]} Rab8 {[%emt 0:02:08]} 20. Rab1 {[%emt 0:00:40]} Qxd4+ {[%emt 0:01:43]} 21. Nxd4 {[%emt 0:00:06]} Nb4 {[%emt 0:00:14]} 22. d6 {[%emt 0:02:53]} g6 {[%emt 0:12:31]} 23. Rfd1 {[%emt 0:05:19]} Rb6 {[%emt 0:03:17]} 24. Nde2 {[%emt 0:09:30]} Re8 {[%emt 0:02:29]} 25. Rd2 {[%emt 0:04:03]} Re3 {[%emt 0:01:20]} 26. b3 {[%emt 0:04:37]} Rd3 {[%emt 0:04:32]} 27. Rdb2 {[%emt 0:01:46]} Rbxd6 {[%emt 0:05:10]} 28. bxc4 {[%emt 0:00:12]} Nc6 {[%emt 0:00:28]} 29. Nb5 {[%emt 0:05:24]} Rd1+ {[%emt 0:00:11]} 30. Kf2 {[%emt 0:01:12]} Rxb1 {[%emt 0:00:26]} 31. Rxb1 {[%emt 0:00:04]} Rd2 {[%emt 0:00:11]} 32. Nbc3 {[%emt 0:00:58]} Ne5 {[%emt 0:03:07]} 33. Rb7 {[%emt 0:04:24]} Nxc4 {[%emt 0:03:12]} 34. Rxa7 {[%emt 0:00:52]} d5 {[%emt 0:03:25]} 35. Nb5 {[%emt 0:01:40]} g5 {[%emt 0:02:14]} 36. g4 {[%emt 0:00:17]} Rb2 {[%emt 0:05:24]} 37. Nbd4 {[%emt 0:00:51]} h5 {[%emt 0:04:18]} 38. h3 {[%emt 0:44:55]} hxg4 {[%emt 0:00:07]} 39. hxg4 {[%emt 0:00:00]} Kg7 {[%emt 0:03:31]} 40. a4 {[%emt 0:00:00]} Ra2 {[%emt 0:00:00]} 41. Nc6 {[%emt 0:00:00]} Ne8 {[%emt 0:01:44]} 42. Ne7 {[%emt 0:00:00]} Nf6 {[%emt 0:02:01]} 43. Nf5+ {[%emt 0:00:00]} Kg6 {[%emt 0:00:18]} 44. Ra6 {[%emt 0:00:00]} Nb2 {[%emt 0:01:27]} 45. Neg3 {[%emt 0:00:00]} Nc4+ {[%emt 0:06:33]} 46. Ke1 {[%emt 0:00:00]} Ra1+ {[%emt 0:04:18]} 47. Ke2 {[%emt 0:00:00]} Ra2+ {[%emt 0:00:04]} 48. Kd1 {[%emt 0:00:00]} Ra1+ {[%emt 0:03:28]} 49. Kc2 {[%emt 0:00:00]} Re1 {[%emt 0:00:17]} 50. Nh5 {[%emt 0:00:00]} Re6 {[%emt 0:00:12]} 51. Ne7+ {[%emt 0:00:00]} Rxe7 {[%emt 0:00:50]} 52. Rxf6+ {[%emt 0:00:00]} Kh7 {[%emt 0:00:05]} 53. Kc3 {[%emt 0:22:30]} Ra7 {[%emt 0:03:17]} 54. Rf5 {[%emt 0:00:00]} Rxa4 {[%emt 0:01:14]} 55. Rxf7+ {[%emt 0:00:00]} Kh6 {[%emt 0:02:33]} 56. Rf6+ {[%emt 0:00:00]} Kh7 {[%emt 0:00:03]} 57. Rf5 {[%emt 0:00:00]} Ra3+ {[%emt 0:00:48]} 58. Kd4 {[%emt 0:00:00]} Nd2 {[%emt 0:00:19]} 59. Rxd5 {[%emt 0:00:00]} Nxf3+ {[%emt 0:00:42]} 60. Ke4 {[%emt 0:00:00]} Nh2 {[%emt 0:00:49]} 61. Kf5 {[%emt 0:00:00]} Ra4 {[%emt 0:03:06]} 62. Rd7+ {[%emt 0:00:00]} Kh6 {[%emt 0:00:22]} 63. Rd6+ {[%emt 0:00:00]} Kh7 {[%emt 0:00:06]} 64. Nf6+ {[%emt 0:00:00]} Kh6 {[%emt 0:00:24]} 65. Ne4+ {[%emt 0:00:00]} Kg7 {[%emt 0:00:15]} 66. Rd7+ {[%emt 0:00:00]} Kh6 {[%emt 0:00:24]} 67. Rd6+ {[%emt 0:00:00]} Kg7 {[%emt 0:00:07]} 68. Rg6+ {[%emt 0:00:00]} Kf8 {[%emt 0:00:29]} 69. Rf6+ {[%emt 0:00:00]} Kg7 {[%emt 0:24:17]} 1/2-1/2

[Event "Vojvodina Open 2024-A 2024"]
[Site "Novi Sad"]
[Date "2024.06.28"]
[Round "6.12"]
[White "Ashvath Mittal"]
[Black "Pantelic, Sasa"]
[Result "1/2-1/2"]
[ECO "B76"]
[WhiteElo "1986"]
[BlackElo "2237"]
[Annotator "RC"]
[PlyCount "102"]
[EventDate "2024.06.03"]
[EventType "swiss"]
[EventCountry "SRB"]
[SourceTitle "playchess.com"]
[Source "ChessBase"]
[SourceQuality "1"]
[TimeControl "40/5400+30:900+30"]

1. e4 {[%emt 0:00:02]} c5 {[%emt 0:00:04]} 2. Nf3 {[%emt 0:00:03]} d6 {[%emt 0:00:21]} 3. d4 {[%emt 0:00:04]} cxd4 {[%emt 0:00:06]} 4. Nxd4 {[%emt 0:00:02]} Nf6 {[%emt 0:00:10]} 5. Nc3 {[%emt 0:00:02]} g6 {[%emt 0:00:04]} 6. Be3 {[%emt 0:00:04]} Bg7 {[%emt 0:00:06]} 7. f3 {[%emt 0:00:04]} O-O {[%emt 0:00:07]} 8. Qd2 {[%emt 0:00:02]} Nc6 {[%emt 0:00:07]} 9. O-O-O {[%emt 0:00:04]} Be6 {[%emt 0:00:05]} 10. g4 {[%emt 0:01:48]} Nxd4 {[%emt 0:00:08]} 11. Bxd4 {[%emt 0:00:10]} Qa5 {[%emt 0:00:04]} 12. Kb1 {[%emt 0:02:32]} Rfc8 {[%emt 0:00:15]} 13. a3 {[%emt 0:01:04]} Rab8 {[%emt 0:00:07]} 14. Bxf6 {[%emt 0:11:50]} Bxf6 {[%emt 1:35:46]} 15. Nd5 {[%emt 0:00:11]} Qxd2 {[%emt 0:00:00]} 16. Rxd2 {[%emt 0:01:56]} Bg5 {[%emt 0:00:00]} 17. Rd1 {[%emt 0:02:34]} Kf8 {[%emt 0:00:00]} 18. h4 {[%emt 0:00:44]} Bh6 {[%emt 0:00:00]} 19. g5 {[%emt 0:00:31]} Bg7 {[%emt 0:00:00]} 20. Bh3 {[%emt 0:04:01]} Rc6 {[%emt 0:00:00]} 21. Nf4 {[%emt 0:10:00]} Bxh3 {[%emt 0:00:00]} 22. Rxh3 {[%emt 0:00:58]} b5 {[%emt 0:00:00]} 23. c3 {[%emt 0:02:57]} a5 {[%emt 0:00:00]} 24. Nd3 {[%emt 0:05:15]} Rd8 {[%emt 0:00:00]} 25. Rh2 {[%emt 0:02:56]} d5 {[%emt 0:00:00]} 26. exd5 {[%emt 0:01:19]} Rxd5 {[%emt 0:00:00]} 27. Rhd2 {[%emt 0:00:56]} e6 {[%emt 0:00:00]} 28. Nf2 {[%emt 0:05:12]} Rxd2 {[%emt 0:00:00]} 29. Rxd2 {[%emt 0:01:02]} Ke7 {[%emt 0:00:00]} 30. Ne4 {[%emt 0:00:39]} h5 {[%emt 0:00:00]} 31. Rd3 {[%emt 0:03:47]} f5 {[%emt 0:00:00]} 32. Nd2 {[%emt 0:01:47]} Be5 {[%emt 0:00:00]} 33. Nb3 {[%emt 0:01:49]} Rd6 {[%emt 0:00:00]} 34. Kc2 {[%emt 0:01:15]} Bg3 {[%emt 0:00:00]} 35. Nxa5 {[%emt 0:02:44]} Bxh4 {[%emt 0:00:00]} 36. f4 {[%emt 0:00:14]} Bf2 {[%emt 0:00:00]} 37. Nb3 {[%emt 0:05:55]} Rxd3 {[%emt 0:00:00]} 38. Kxd3 {[%emt 0:00:21]} Kd6 {[%emt 0:00:00]} 39. Nd4 {[%emt 0:07:10]} h4 {[%emt 0:00:00]} 40. Nxb5+ {[%emt 0:00:00]} Kc6 {[%emt 0:00:00]} 41. Ke2 {[%emt 0:03:20]} Bb6 {[%emt 0:00:00]} 42. Nd4+ {[%emt 0:02:13]} Kd5 {[%emt 0:00:00]} 43. Kf3 {[%emt 0:00:32]} Bxd4 {[%emt 0:00:00]} 44. cxd4 {[%emt 0:00:02]} Kxd4 {[%emt 0:00:00]} 45. a4 {[%emt 0:01:18]} e5 {[%emt 0:00:00]} 46. fxe5 {[%emt 0:04:52]} Kxe5 {[%emt 0:00:00]} 47. a5 {[%emt 0:00:13]} Kd5 {[%emt 0:00:00]} 48. b4 {[%emt 0:00:13]} Kc6 {[%emt 0:00:00]} 49. a6 {[%emt 0:00:09]} Kb6 {[%emt 0:00:00]} 50. b5 {[%emt 0:00:07]} Ka7 {[%emt 0:00:00]} 51. Kf4 {[%emt 0:00:10]} Kb6 {[%emt 0:00:00]} 1/2-1/2